fUSD/lending_fUSD_20240614
["ID","MTS","AMOUNT","RATE_DAILY","PERIOD"]
[329436842,1718339546092,-542.84,0.00027943,3]
[329436843,1718339546115,-1349.75,0.00027943,3]
[329436844,1718339546145,-701.93,0.00027943,3]
[329436845,1718339546166,-999.06,0.00027943,3]
[329436846,1718339546192,-4942.89,0.00027943,3]
[329436847,1718339546224,-818.16,0.00027944,3]
[329436848,1718339546247,-3270.76,0.00027944,3]
[329436849,1718339546264,-661.36,0.00027944,3]
[329436850,1718339546294,-502.95,0.00027944,3]
[329436851,1718339546325,-580.28,0.00027944,3]
[329436852,1718339546353,-612.06,0.00027945,3]
[329436853,1718339546370,-336.49478967,0.00027945,3]
[329436854,1718339546395,-1410.74322749,0.00027945,30]
[329436855,1718339546415,-500.0,0.00027945,3]
[329436856,1718339546432,-500.0,0.00027945,3]
[329436857,1718339546449,-500.0,0.00027945,3]
[329436858,1718339546469,-267.52927521,0.00027945,3]
[329436859,1718339546492,-6561.12,0.00027945,3]
[329436860,1718339546511,-500.0,0.00027945,3]
[329436861,1718339546530,-531.91,0.00027945,3]
[329436862,1718339546550,-500.0,0.00027945,3]
[329436863,1718339546574,-500.0,0.00027945,3]
[329436864,1718339546591,-500.0,0.00027945,3]
[329436865,1718339546613,-500.0,0.00027945,3]
[329436866,1718339546653,-1004.96,0.00027945,3]
[329436867,1718339546680,-454.61487341,0.00027945,3]
[329436868,1718339546706,-500.0,0.00027945,3]
[329436869,1718339546735,-538.39,0.00027945,3]
[329436870,1718339546762,-1118.03,0.00027945,3]
[329436871,1718339546778,-714.57,0.00027945,3]
[329436872,1718339546794,-608.47,0.00027945,3]
[329436873,1718339546813,-613.06,0.00027945,3]
[329436874,1718339546831,-1072.6,0.00027945,3]
[329436875,1718339546849,-956.0,0.00027945,3]
[329436876,1718339546867,-2671.76,0.00027945,3]
[329436877,1718339546886,-1819.66,0.00027945,3]
[329436878,1718339546902,-933.79,0.00027945,3]
[329436879,1718339546918,-621.84,0.00027945,3]
[329436880,1718339546940,-555.33,0.00027945,3]
[329436881,1718339546964,-675.64,0.00027945,3]
[329436882,1718339547003,-1522.73,0.00027945,3]
[329436883,1718339547024,-685.9,0.00027945,3]
[329436884,1718339547047,-568.14,0.00027945,3]
[329436885,1718339547064,-1128.28,0.00027945,3]
[329436886,1718339547085,-955.6,0.00027945,3]
[329436887,1718339547108,-550.81,0.00027945,3]
[329436888,1718339547135,-500.0,0.00027945,3]
[329436889,1718339547164,-1291.78,0.00027945,3]
[329436890,1718339547376,-658.71,0.00027945,3]
[329436891,1718339547401,-856.95,0.00027945,3]
[329436892,1718339547415,-581.33639487,0.00027945,3]
[329436893,1718339547434,-1024.96,0.00027945,3]
[329436894,1718339547446,-2152.37,0.00027945,3]
[329436895,1718339547476,-599.85,0.00027945,3]
[329436896,1718339547488,-500.0,0.00027945,3]
[329436897,1718339547499,-956.85,0.00027945,3]
[329436898,1718339547511,-1170.45,0.00027945,3]
[329436899,1718339547523,-1214.59,0.00027945,3]
[329436900,1718339547537,-500.0,0.00027945,3]
[329436901,1718339547555,-500.0,0.00027945,3]
[329436902,1718339547567,-500.0,0.00027945,3]
[329436903,1718339547578,-500.0,0.00027945,3]
[329436904,1718339547589,-2473.73,0.00027945,3]
[329436905,1718339547601,-500.0,0.00027945,3]
[329436906,1718339547615,-805.87,0.00027945,3]
[329436907,1718339547628,-1116.43,0.00027945,3]
[329436908,1718339547651,-1036.04,0.00027945,3]
[329436909,1718339547673,-1345.04,0.00027945,3]
[329436910,1718339547688,-1427.39,0.00027945,3]
[329436911,1718339547707,-500.0,0.00027945,3]
[329436912,1718339547729,-478.27159137,0.00027945,3]
[329436913,1718339547743,-252.83164863,0.00027945,3]
[329436914,1718339547776,-697.86,0.00027945,3]
[329436915,1718339547793,-500.0,0.00027945,3]
[329436916,1718339547816,-679.77,0.00027945,3]
[329436917,1718339547832,-179.61162656,0.00027945,3]
[329436918,1718339547849,-590.04,0.00027945,3]
[329436919,1718339547880,-500.0,0.00027945,3]
[329436920,1718339547893,-622.11,0.00027945,3]
[329436921,1718339547909,-1058.89,0.00027945,3]
[329436922,1718339547924,-2428.66,0.00027945,3]
[329436923,1718339547951,-592.39,0.00027945,3]
[329436924,1718339547963,-2903.07,0.00027945,3]
[329436925,1718339547982,-1440.79,0.00027945,3]
[329436926,1718339547997,-592.07,0.00027945,3]
[329436927,1718339548012,-1382.49,0.00027945,3]
[329436928,1718339548038,-3488.55,0.00027945,3]
[329436929,1718339548055,-685.96,0.00027945,3]
[329436930,1718339548079,-1913.72,0.00027945,3]
[329436931,1718339548102,-7564.41,0.00027945,3]
[329436932,1718339548116,-1286.09,0.00027945,3]
[329436933,1718339548134,-586.2,0.00027945,3]
[329436934,1718339548159,-812.79,0.00027945,3]
[329436935,1718339548210,-895.63,0.00027945,3]
[329436936,1718339548244,-1228.35,0.00027945,3]
[329436937,1718339548260,-3118.28,0.00027945,3]
[329436938,1718339548280,-793.01,0.00027945,3]
[329436939,1718339548293,-500.0,0.00027945,3]
[329436940,1718339548324,-500.0,0.00027945,3]
[329436941,1718339548348,-259.31516905,0.0002799,2]
[329436942,1718339548374,-300.0,0.00027999,10]
[329436943,1718339548407,-3892.07809183,0.00028,7]
[329436944,1718339548420,-5484.67647286,0.00028,60]
[329436945,1718339548443,-1111.96470054,0.00028,5]
[329436946,1718339548462,-539.0,0.00028,2]
[329436947,1718339548504,-164.07692662,0.00028,21]
[329436948,1718339548520,-339.57905341,0.00028,7]
[329436949,1718339548542,-469.42365775,0.00028,2]
[329436950,1718339548560,-160.03813978,0.00028,2]
[329436951,1718339548583,-300.0,0.00028,2]
[329436952,1718339548605,-911239.90184692,0.00028,10]
[329436953,1718339548616,-500.0,0.00028,2]
[329436954,1718339548632,-151.7986385,0.00028,2]
[329436955,1718339548645,-151.7986385,0.00028,2]
[329436956,1718339548660,-151.7986385,0.00028,2]
[329436957,1718339548672,-151.7986385,0.00028,2]
[329436958,1718339548704,-151.7986385,0.00028,2]
[329436959,1718339548726,-151.7986385,0.00028,2]
[329436960,1718339548738,-151.7986385,0.00028,2]
[329436961,1718339548751,-151.7986385,0.00028,2]
[329436962,1718339548763,-151.7986385,0.00028,2]
[329436963,1718339548779,-151.7986385,0.00028,2]
[329436964,1718339548817,-151.7986385,0.00028,2]
[329436965,1718339548834,-151.7986385,0.00028,2]
[329436966,1718339548848,-151.7986385,0.00028,2]
[329436967,1718339548872,-151.7986385,0.00028,2]
[329436968,1718339548901,-151.7986385,0.00028,2]
[329436969,1718339548938,-151.7986385,0.00028,2]
[329436970,1718339548972,-151.7986385,0.00028,2]
[329436971,1718339548989,-151.7986385,0.00028,2]
[329436972,1718339549028,-151.7986385,0.00028,2]
[329436973,1718339549052,-151.7986385,0.00028,2]
[329436974,1718339549075,-151.7986385,0.00028,2]
[329436975,1718339549105,-151.7986385,0.00028,2]
[329436976,1718339549126,-151.7986385,0.00028,2]
[329436977,1718339549138,-151.7986385,0.00028,2]
[329436978,1718339549169,-151.7986385,0.00028,2]
[329436979,1718339549181,-151.7986385,0.00028,2]
[329436980,1718339549194,-151.7986385,0.00028,2]
[329436981,1718339549207,-151.7986385,0.00028,2]
[329436982,1718339549229,-151.7986385,0.00028,2]
[329436983,1718339549246,-151.7986385,0.00028,2]
[329436984,1718339549265,-151.7986385,0.00028,2]
[329436985,1718339549281,-151.7986385,0.00028,2]
[329436986,1718339549295,-151.7986385,0.00028,2]
[329436987,1718339549319,-151.7986385,0.00028,2]
[329436988,1718339549329,-151.7986385,0.00028,2]
[329436989,1718339549340,-151.7986385,0.00028,2]
[329436990,1718339549350,-151.7986385,0.00028,2]
[329436991,1718339549360,-151.7986385,0.00028,2]
[329436992,1718339549371,-151.7986385,0.00028,2]
[329436993,1718339549382,-151.7986385,0.00028,2]
[329436994,1718339549398,-151.7986385,0.00028,2]
[329436995,1718339549408,-151.7986385,0.00028,2]
[329436996,1718339549419,-151.7986385,0.00028,2]
[329436997,1718339549430,-151.7986385,0.00028,2]
[329436998,1718339549441,-151.7986385,0.00028,2]
[329436999,1718339549453,-151.7986385,0.00028,2]
[329437000,1718339549467,-151.7986385,0.00028,2]
[329437001,1718339549493,-151.7986385,0.00028,2]
[329437002,1718339549520,-151.7986385,0.00028,2]
[329437003,1718339549540,-200.0,0.00028,10]
[329437004,1718339549552,-4332.01195229,0.00028011,30]
[329437005,1718339549577,-319.5,0.00028035,2]
[329437006,1718339549590,-164.1879361,0.00028055,30]
[329437007,1718339549605,-154.25476656,0.00028086,2]
[329437008,1718339549624,-977.26,0.000281,2]
[329437009,1718339549638,-173.9960376,0.00028105,2]
[329437010,1718339549650,-1288.81460087,0.00028148,2]
[329437011,1718339549661,-2511.11,0.00028185,2]
[329437012,1718339549672,-159.73819316,0.00028215,2]
[329437013,1718339549683,-804.3,0.00028216,3]
[329437014,1718339549694,-523.82,0.00028217,3]
[329437015,1718339549705,-381.42851585,0.00028217,3]
[329437016,1718339549720,-500.0,0.00028217,3]
[329437017,1718339549730,-500.0,0.00028217,3]
[329437018,1718339549741,-500.0,0.00028217,3]
[329437019,1718339549752,-500.0,0.00028217,3]
[329437020,1718339549775,-500.0,0.00028217,3]
[329437021,1718339549793,-500.0,0.00028217,3]
[329437022,1718339549804,-1564.27,0.00028217,3]
[329437023,1718339549816,-589.39,0.00028217,3]
[329437024,1718339549827,-739.0,0.00028217,3]
[329437025,1718339549838,-500.0,0.00028217,3]
[329437026,1718339549849,-500.0,0.00028217,3]
[329437027,1718339549859,-531.15,0.00028217,3]
[329437028,1718339549880,-542.84,0.00028217,3]
[329437029,1718339549897,-1349.75,0.00028217,3]
[329437030,1718339549907,-701.93,0.00028217,3]
[329437031,1718339549944,-999.06,0.00028217,3]
[329437032,1718339549962,-4942.89,0.00028217,3]
[329437033,1718339549980,-818.16,0.00028218,3]
[329437034,1718339549992,-3270.76,0.00028218,3]
[329437035,1718339550008,-661.36,0.00028218,3]
[329437036,1718339550019,-502.95,0.00028218,3]
[329437037,1718339550041,-580.28,0.00028218,3]
[329437038,1718339550054,-612.06,0.00028219,3]
[329437039,1718339550069,-500.0,0.00028219,3]
[329437040,1718339550097,-500.0,0.00028219,3]
[329437041,1718339550140,-504.06777818,0.00028219,3]
[329437042,1718339550202,-6561.12,0.00028219,3]
[329437043,1718339550227,-500.0,0.00028219,3]
[329437044,1718339550261,-531.91,0.00028219,3]
[329437045,1718339550288,-500.0,0.00028219,3]
[329437046,1718339550300,-500.0,0.00028219,3]
[329437047,1718339550311,-500.0,0.00028219,3]
[329437048,1718339550323,-500.0,0.00028219,3]
[329437049,1718339550334,-1004.96,0.00028219,3]
[329437050,1718339550366,-500.0,0.00028219,3]
[329437051,1718339550388,-538.39,0.00028219,3]
[329437052,1718339550400,-1118.03,0.00028219,3]
[329437053,1718339550416,-714.57,0.00028219,3]
[329437054,1718339550433,-608.47,0.00028219,3]
[329437055,1718339550448,-613.06,0.00028219,3]
[329437056,1718339550463,-1072.6,0.00028219,3]
[329437057,1718339550477,-956.0,0.00028219,3]
[329437058,1718339550499,-2671.76,0.00028219,3]
[329437059,1718339550517,-1819.66,0.00028219,3]
[329437060,1718339550529,-933.79,0.00028219,3]
[329437061,1718339550548,-621.84,0.00028219,3]
[329437062,1718339550566,-555.33,0.00028219,3]
[329437063,1718339550592,-675.64,0.00028219,3]
[329437064,1718339550607,-1522.73,0.00028219,3]
[329437065,1718339550624,-685.9,0.00028219,3]
[329437066,1718339550653,-568.14,0.00028219,3]
[329437067,1718339550674,-1128.28,0.00028219,3]
[329437068,1718339550696,-955.6,0.00028219,3]
[329437069,1718339550714,-550.81,0.00028219,3]
[329437070,1718339550738,-500.0,0.00028219,3]
[329437071,1718339550759,-1291.78,0.00028219,3]
[329437072,1718339550777,-658.71,0.00028219,3]
[329437073,1718339550789,-856.95,0.00028219,3]
[329437074,1718339550801,-1024.96,0.00028219,3]
[329437075,1718339550821,-2152.37,0.00028219,3]
[329437076,1718339550834,-599.85,0.00028219,3]
[329437077,1718339550855,-500.0,0.00028219,3]
[329437078,1718339550866,-956.85,0.00028219,3]
[329437079,1718339550885,-1170.45,0.00028219,3]
[329437080,1718339550899,-1214.59,0.00028219,3]
[329437081,1718339550916,-500.0,0.00028219,3]
[329437082,1718339550944,-500.0,0.00028219,3]
[329437083,1718339550954,-500.0,0.00028219,3]
[329437084,1718339550967,-500.0,0.00028219,3]
[329437085,1718339550990,-2473.73,0.00028219,3]
[329437086,1718339551002,-500.0,0.00028219,3]
[329437087,1718339551020,-1116.43,0.00028219,3]
[329437088,1718339551040,-805.87,0.00028219,3]
[329437089,1718339551053,-1036.04,0.00028219,3]
[329437090,1718339551068,-1345.04,0.00028219,3]
[329437091,1718339551086,-1427.39,0.00028219,3]
[329437092,1718339551101,-465.3507916,0.00028219,3]
[329437093,1718339551117,-697.86,0.00028219,3]
[329437094,1718339551131,-500.0,0.00028219,3]
[329437095,1718339551168,-679.77,0.00028219,3]
[329437096,1718339551188,-500.0,0.00028219,3]
[329437097,1718339551328,-590.04,0.00028219,3]
[329437098,1718339551341,-622.11,0.00028219,3]
[329437099,1718339551373,-1058.89,0.00028219,3]
[329437100,1718339551395,-2428.66,0.00028219,3]
[329437101,1718339551412,-592.39,0.00028219,3]
[329437102,1718339551440,-2903.07,0.00028219,3]
[329437103,1718339551452,-1440.79,0.00028219,3]
[329437104,1718339551463,-592.07,0.00028219,3]
[329437105,1718339551483,-1382.49,0.00028219,3]
[329437106,1718339551508,-500.0,0.00028219,2]
[329437107,1718339551520,-500.0,0.00028219,2]
[329437108,1718339551546,-500.0,0.00028219,2]
[329437109,1718339551578,-500.0,0.00028219,2]
[329437110,1718339551594,-500.0,0.00028219,2]
[329437111,1718339551618,-500.0,0.00028219,2]
[329437112,1718339551656,-500.0,0.00028219,2]
[329437113,1718339551670,-500.0,0.00028219,2]
[329437114,1718339551695,-500.0,0.00028219,2]
[329437115,1718339551722,-500.0,0.00028219,2]
[329437116,1718339551734,-500.0,0.00028219,2]
[329437117,1718339551745,-3488.55,0.00028219,3]
[329437118,1718339551761,-500.0,0.00028219,2]
[329437119,1718339551776,-500.0,0.00028219,2]
[329437120,1718339551828,-500.0,0.00028219,2]
[329437121,1718339551843,-685.96,0.00028219,3]
[329437122,1718339551857,-500.0,0.00028219,2]
[329437123,1718339551869,-500.0,0.00028219,2]
[329437124,1718339551882,-500.0,0.00028219,2]
[329437125,1718339551914,-500.0,0.00028219,2]
[329437126,1718339551935,-500.0,0.00028219,2]
[329437127,1718339551960,-500.0,0.00028219,2]
[329437128,1718339552004,-500.0,0.00028219,2]
[329437129,1718339552017,-500.0,0.00028219,2]
[329437130,1718339552042,-1913.72,0.00028219,3]
[329437131,1718339552058,-500.0,0.00028219,2]
[329437132,1718339552071,-7564.41,0.00028219,3]
[329437133,1718339552084,-500.0,0.00028219,2]
[329437134,1718339552095,-1286.09,0.00028219,3]
[329437135,1718339552111,-500.0,0.00028219,2]
[329437136,1718339552138,-500.0,0.00028219,2]
[329437137,1718339552163,-500.0,0.00028219,2]
[329437138,1718339552180,-500.0,0.00028219,2]
[329437139,1718339552227,-586.2,0.00028219,3]
[329437140,1718339552251,-500.0,0.00028219,2]
[329437141,1718339552268,-500.0,0.00028219,2]
[329437142,1718339552281,-500.0,0.00028219,2]
[329437143,1718339552296,-500.0,0.00028219,2]
[329437144,1718339552320,-500.0,0.00028219,2]
[329437145,1718339552332,-500.0,0.00028219,2]
[329437146,1718339552354,-500.0,0.00028219,2]
[329437147,1718339552392,-812.79,0.00028219,3]
[329437148,1718339552404,-500.0,0.00028219,2]
[329437149,1718339552415,-500.0,0.00028219,2]
[329437150,1718339552430,-500.0,0.00028219,2]
[329437151,1718339552475,-500.0,0.00028219,2]
[329437152,1718339552504,-500.0,0.00028219,2]
[329437153,1718339552520,-500.0,0.00028219,2]
[329437154,1718339552532,-500.0,0.00028219,2]
[329437155,1718339552542,-500.0,0.00028219,2]
[329437156,1718339552579,-500.0,0.00028219,2]
[329437157,1718339552590,-500.0,0.00028219,2]
[329437158,1718339552617,-500.0,0.00028219,2]
[329437159,1718339552629,-500.0,0.00028219,2]
[329437160,1718339552641,-500.0,0.00028219,2]
[329437161,1718339552653,-500.0,0.00028219,2]
[329437162,1718339552676,-500.0,0.00028219,2]
[329437163,1718339552692,-895.63,0.00028219,3]
[329437164,1718339552717,-500.0,0.00028219,2]
[329437165,1718339552753,-500.0,0.00028219,2]
[329437166,1718339552771,-500.0,0.00028219,2]
[329437167,1718339552797,-500.0,0.00028219,2]
[329437168,1718339552812,-500.0,0.00028219,2]
[329437169,1718339552849,-500.0,0.00028219,2]
[329437170,1718339552861,-500.0,0.00028219,2]
[329437171,1718339552875,-500.0,0.00028219,2]
[329437172,1718339552896,-500.0,0.00028219,2]
[329437173,1718339552923,-500.0,0.00028219,2]
[329437174,1718339552944,-500.0,0.00028219,2]
[329437175,1718339552961,-500.0,0.00028219,2]
[329437176,1718339552974,-500.0,0.00028219,2]
[329437177,1718339552992,-500.0,0.00028219,2]
[329437178,1718339553004,-1228.35,0.00028219,3]
[329437179,1718339553032,-3118.28,0.00028219,3]
[329437180,1718339553072,-500.0,0.00028219,2]
[329437181,1718339553091,-500.0,0.00028219,2]
[329437182,1718339553124,-500.0,0.00028219,2]
[329437183,1718339553163,-500.0,0.00028219,2]
[329437184,1718339553182,-500.0,0.00028219,2]
[329437185,1718339553256,-500.0,0.00028219,2]
[329437186,1718339553291,-500.0,0.00028219,2]
[329437187,1718339553332,-500.0,0.00028219,2]
[329437188,1718339553344,-500.0,0.00028219,2]
[329437189,1718339553355,-500.0,0.00028219,2]
[329437190,1718339553376,-500.0,0.00028219,2]
[329437191,1718339553393,-500.0,0.00028219,2]
[329437192,1718339553414,-500.0,0.00028219,2]
[329437193,1718339553428,-500.0,0.00028219,2]
[329437194,1718339553454,-500.0,0.00028219,2]
[329437195,1718339553481,-500.0,0.00028219,2]
[329437196,1718339553499,-500.0,0.00028219,2]
[329437197,1718339553513,-500.0,0.00028219,2]
[329437198,1718339553529,-500.0,0.00028219,2]
[329437199,1718339553556,-500.0,0.00028219,2]
[329437200,1718339553573,-500.0,0.00028219,2]
[329437201,1718339553584,-500.0,0.00028219,2]
[329437202,1718339553595,-500.0,0.00028219,2]
[329437203,1718339553607,-500.0,0.00028219,2]
[329437204,1718339553628,-500.0,0.00028219,2]
[329437205,1718339553641,-500.0,0.00028219,2]
[329437206,1718339553654,-500.0,0.00028219,2]
[329437207,1718339553665,-500.0,0.00028219,2]
[329437208,1718339553677,-500.0,0.00028219,2]
[329437209,1718339553689,-500.0,0.00028219,2]
[329437210,1718339553700,-500.0,0.00028219,2]
[329437211,1718339553711,-500.0,0.00028219,2]
[329437212,1718339553723,-793.01,0.00028219,3]
[329437213,1718339553749,-500.0,0.00028219,2]
[329437214,1718339553762,-500.0,0.00028219,2]
[329437215,1718339553773,-500.0,0.00028219,2]
[329437216,1718339553828,-500.0,0.00028219,2]
[329437217,1718339553839,-500.0,0.00028219,2]
[329437218,1718339553852,-500.0,0.00028219,2]
[329437219,1718339553875,-500.0,0.00028219,3]
[329437220,1718339553886,-500.0,0.00028219,2]
[329437221,1718339553899,-500.0,0.00028219,2]
[329437222,1718339553911,-500.0,0.00028219,2]
[329437223,1718339553922,-500.0,0.00028219,2]
[329437224,1718339553935,-500.0,0.00028219,2]
[329437225,1718339553947,-500.0,0.00028219,2]
[329437226,1718339553959,-500.0,0.00028219,2]
[329437227,1718339553973,-500.0,0.00028219,3]
[329437228,1718339553988,-500.0,0.00028219,2]
[329437229,1718339553999,-264.658905,0.00028219,14]
[329437230,1718339554012,-154.39352931,0.00028295,2]
[329437231,1718339554035,-259.31516905,0.00028297,2]
[329437232,1718339554076,-152.0,0.000283,9]
[329437233,1718339554104,-259.31516905,0.00028327,2]
[329437234,1718339554123,-500.0,0.00028333,2]
[329437235,1718339554141,-500.0,0.00028342,2]
[329437236,1718339554160,-500.0,0.00028351,2]
[329437237,1718339554208,-152.66,0.00028356,2]
[329437238,1718339554224,-500.0,0.0002836,2]
[329437239,1718339554244,-154.25476656,0.00028362,2]
[329437240,1718339554257,-500.0,0.00028369,2]
[329437241,1718339554283,-500.0,0.00028377,2]
[329437242,1718339554352,-156.55047755,0.00028383,2]
[329437243,1718339554377,-164.1879361,0.00028384,30]
[329437244,1718339554389,-500.0,0.00028386,2]
[329437245,1718339554402,-154.25476656,0.00028387,2]
[329437246,1718339554428,-500.0,0.00028395,2]
[329437247,1718339554456,-500.0,0.00028395,2]
[329437248,1718339554467,-747.24,0.000284,2]
[329437249,1718339554507,-1005.1,0.00028405,2]
[329437250,1718339554518,-259.31516905,0.00028413,2]
[329437251,1718339554533,-259.31516905,0.00028418,2]
[329437252,1718339554560,-500.0,0.0002842,2]
[329437253,1718339554574,-500.0,0.00028422,2]
[329437254,1718339554589,-500.0,0.0002843,2]
[329437255,1718339554603,-500.0,0.0002843,2]
[329437256,1718339554615,-500.0,0.00028439,2]
[329437257,1718339554640,-500.0,0.00028439,2]
[329437258,1718339554652,-500.0,0.00028448,2]
[329437259,1718339554664,-500.0,0.00028448,2]
[329437260,1718339554677,-259.31516905,0.00028449,2]
[329437261,1718339554689,-153.72,0.00028451,2]
[329437262,1718339554705,-500.0,0.00028457,2]
[329437263,1718339554717,-500.0,0.00028457,2]
[329437264,1718339554734,-500.0,0.00028457,2]
[329437265,1718339554755,-500.0,0.00028466,2]
[329437266,1718339554803,-500.0,0.00028466,2]
[329437267,1718339554814,-500.0,0.00028466,2]
[329437268,1718339554824,-500.0,0.00028474,2]
[329437269,1718339554842,-500.0,0.00028474,2]
[329437270,1718339554853,-154.79479391,0.00028483,2]
[329437271,1718339554865,-500.0,0.00028483,2]
[329437272,1718339554882,-500.0,0.00028483,2]
[329437273,1718339554897,-500.0,0.00028483,2]
[329437274,1718339554907,-804.3,0.0002849,3]
[329437275,1718339554923,-523.82,0.00028491,3]
[329437276,1718339554937,-500.0,0.00028491,3]
[329437277,1718339554968,-499.82116026,0.00028491,3]
[329437278,1718339554980,-500.0,0.00028491,3]
[329437279,1718339554994,-500.0,0.00028491,3]
[329437280,1718339555006,-500.0,0.00028491,3]
[329437281,1718339555019,-500.0,0.00028491,3]
[329437282,1718339555039,-1564.27,0.00028491,3]
[329437283,1718339555057,-589.39,0.00028491,3]
[329437284,1718339555080,-739.0,0.00028491,3]
[329437285,1718339555121,-500.0,0.00028491,3]
[329437286,1718339555148,-500.0,0.00028491,3]
[329437287,1718339555176,-531.15,0.00028491,3]
[329437288,1718339555319,-542.84,0.00028491,3]
[329437289,1718339555337,-1349.75,0.00028491,3]
[329437290,1718339555349,-701.93,0.00028491,3]
[329437291,1718339555364,-999.06,0.00028491,3]
[329437292,1718339555376,-4942.89,0.00028491,3]
[329437293,1718339555396,-500.0,0.00028492,2]
[329437294,1718339555408,-500.0,0.00028492,2]
[329437295,1718339555425,-500.0,0.00028492,2]
[329437296,1718339555444,-12737.03450975,0.00028492,2]
[329437297,1718339555463,-818.16,0.00028492,3]
[329437298,1718339555489,-3270.76,0.00028492,3]
[329437299,1718339555507,-661.36,0.00028492,3]
[329437300,1718339555531,-502.95,0.00028492,3]
[329437301,1718339555543,-580.28,0.00028492,3]
[329437302,1718339555579,-612.06,0.00028493,3]
[329437303,1718339555590,-500.0,0.00028493,3]
[329437304,1718339555601,-281.43640083,0.00028493,3]
[329437305,1718339555616,-6561.12,0.00028493,3]
[329437306,1718339555639,-500.0,0.00028493,3]
[329437307,1718339555650,-531.91,0.00028493,3]
[329437308,1718339555667,-500.0,0.00028493,3]
[329437309,1718339555684,-500.0,0.00028493,3]
[329437310,1718339555713,-500.0,0.00028493,3]
[329437311,1718339555734,-500.0,0.00028493,3]
[329437312,1718339555760,-1004.96,0.00028493,3]
[329437313,1718339555806,-500.0,0.00028493,3]
[329437314,1718339555830,-538.39,0.00028493,3]
[329437315,1718339555844,-1118.03,0.00028493,3]
[329437316,1718339555892,-714.57,0.00028493,3]
[329437317,1718339555924,-608.47,0.00028493,3]
[329437318,1718339555939,-613.06,0.00028493,3]
[329437319,1718339555961,-1072.6,0.00028493,3]
[329437320,1718339555991,-956.0,0.00028493,3]
[329437321,1718339556009,-1819.66,0.00028493,3]
[329437322,1718339556037,-2671.76,0.00028493,3]
[329437323,1718339556054,-933.79,0.00028493,3]
[329437324,1718339556088,-621.84,0.00028493,3]
[329437325,1718339556118,-555.33,0.00028493,3]
[329437326,1718339556160,-675.64,0.00028493,3]
[329437327,1718339556177,-1522.73,0.00028493,3]
[329437328,1718339556228,-685.9,0.00028493,3]
[329437329,1718339556251,-568.14,0.00028493,3]
[329437330,1718339556288,-1128.28,0.00028493,3]
[329437331,1718339556374,-955.6,0.00028493,3]
[329437332,1718339556409,-550.81,0.00028493,3]
[329437333,1718339556428,-565.89539959,0.00028493,3]
[329437334,1718339556456,-1291.78,0.00028493,3]
[329437335,1718339556468,-658.71,0.00028493,3]
[329437336,1718339556504,-856.95,0.00028493,3]
[329437337,1718339556527,-1024.96,0.00028493,3]
[329437338,1718339556543,-2152.37,0.00028493,3]
[329437339,1718339556570,-599.85,0.00028493,3]
[329437340,1718339556581,-500.0,0.00028493,3]
[329437341,1718339556609,-956.85,0.00028493,3]